[Event "FIDE World School-ch G-13 2025"]
[Site "Vrnjacka Banja"]
[Date "2025.03.28"]
[Round "9.1"]
[White "Gaer, Sofiya Ig"]
[Black "Begmuratova, Sarvinoz"]
[Result "1/2-1/2"]
[Annotator "NA RC"]
[ECO "B13"]
[WhiteElo "1733"]
[BlackElo "1808"]
[PlyCount "61"]
[EventDate "2025.03.19"]
[EventType "swiss"]
[EventCountry "SRB"]
[SourceTitle "playchess.com"]
[Source "ChessBase"]
[SourceQuality "1"]
[TimeControl "5400+30"]

1. e4 {[%emt 0:00:07]} c6 {[%emt 0:00:04]} 2. d4 {[%emt 0:00:09]} d5 {[%emt 0:00:05]} 3. exd5 {[%emt 0:00:09]} cxd5 {[%emt 0:00:04]} 4. Bd3 {[%emt 0:00:10]} Nf6 {[%emt 0:00:11]} 5. h3 {[%emt 0:00:07]} Nc6 {[%emt 0:00:15]} 6. Nf3 {[%emt 0:00:09]} Nb4 {[%emt 0:00:15]} 7. Ne5 {[%emt 0:00:14]} Nxd3+ {[%emt 0:02:35]} 8. Qxd3 {[%emt 0:00:08]} e6 {[%emt 0:02:01]} 9. Nc3 {[%emt 0:00:27]} Be7 {[%emt 0:02:13]} 10. O-O {[%emt 0:00:36]} O-O {[%emt 0:00:43]} 11. Bg5 {[%emt 0:00:36]} Bd7 {[%emt 0:03:15]} 12. f4 {[%emt 0:03:09]} h6 {[%emt 0:14:46]} 13. Bh4 {[%emt 0:02:43]} Bc8 {[%emt 0:16:09]} 14. Rae1 {[%emt 0:04:34]} Kh8 {[%emt 0:03:02]} 15. Re3 {[%emt 0:11:16]} Ng8 {[%emt 0:05:35]} 16. Be1 {[%emt 0:05:56]} Bf6 {[%emt 0:01:15]} 17. g4 {[%emt 0:02:50]} Bh4 {[%emt 0:09:10]} 18. Bxh4 {[%emt 0:07:57]} Qxh4 {[%emt 0:00:05]} 19. Rg3 {[%emt 0:00:28]} Ne7 {[%emt 0:06:01]} 20. Kh2 {[%emt 0:04:50]} g6 {[%emt 0:03:32]} 21. Nd1 {[%emt 0:09:38]} Qf6 {[%emt 0:06:06]} 22. Qa3 {[%emt 0:08:24]} Re8 {[%emt 0:07:33]} 23. Ne3 {[%emt 0:03:47]} Qg7 {[%emt 0:01:56]} 24. f5 {[%emt 0:08:52]} f6 {[%emt 0:00:04]} 25. Nxg6+ {[%emt 0:01:08]} Nxg6 {[%emt 0:00:04]} 26. fxg6 {[%emt 0:00:09]} Qxg6 {[%emt 0:00:04]} 27. Rgf3 {[%emt 0:01:11]} f5 {[%emt 0:00:13]} 28. Qd3 {[%emt 0:01:29]} Rg8 {[%emt 0:00:31]} 29. R3f2 {[%emt 0:04:08]} Bd7 {[%emt 0:04:37]} 30. Rg2 {[%emt 0:02:56]} Qf6 {[%emt 0:05:38]} 31. gxf5 {[%emt 0:09:47]} 1/2-1/2

[Event "FIDE World School-ch G-13 2025"]
[Site "Vrnjacka Banja"]
[Date "2025.03.28"]
[Round "9.2"]
[White "Mamakova, Aknur"]
[Black "Smirnova, Viktoria A"]
[Result "1-0"]
[Annotator "NA RC"]
[ECO "D43"]
[WhiteElo "1797"]
[BlackElo "1671"]
[PlyCount "107"]
[EventDate "2025.03.19"]
[EventType "swiss"]
[EventCountry "SRB"]
[SourceTitle "playchess.com"]
[Source "ChessBase"]
[SourceQuality "1"]
[TimeControl "5400+30"]

1. d4 {[%emt 0:00:09]} d5 {[%emt 0:00:15]} 2. c4 {[%emt 0:00:07]} e6 {[%emt 0:00:03]} 3. Nc3 {[%emt 0:00:21]} Nf6 {[%emt 0:00:22]} 4. Nf3 {[%emt 0:00:08]} c6 {[%emt 0:00:50]} 5. Bg5 {[%emt 0:01:15]} h6 {[%emt 0:00:55]} 6. Bxf6 {[%emt 0:01:09]} Qxf6 {[%emt 0:00:40]} 7. e3 {[%emt 0:00:30]} Bd6 {[%emt 0:01:59]} 8. Rc1 {[%emt 0:01:54]} Nd7 {[%emt 0:01:40]} 9. Bd3 {[%emt 0:03:33]} dxc4 {[%emt 0:04:22]} 10. Bxc4 {[%emt 0:04:23]} Qe7 {[%emt 0:03:40]} 11. a3 {[%emt 0:02:31]} O-O {[%emt 0:05:06]} 12. O-O {[%emt 0:01:39]} Nb6 {[%emt 0:16:16]} 13. Bd3 {[%emt 0:01:42]} Rd8 {[%emt 0:09:40]} 14. Qe2 {[%emt 0:02:09]} Bd7 {[%emt 0:04:40]} 15. Ne4 {[%emt 0:02:41]} Rac8 {[%emt 0:04:50]} 16. Nxd6 {[%emt 0:03:25]} Qxd6 {[%emt 0:00:47]} 17. Bb1 {[%emt 0:00:14]} Be8 {[%emt 0:05:01]} 18. h4 {[%emt 0:03:13]} Nd7 {[%emt 0:02:39]} 19. Qd3 {[%emt 0:02:23]} f5 {[%emt 0:04:47]} 20. Rfe1 {[%emt 0:12:04]} Bg6 {[%emt 0:05:03]} 21. Qb3 {[%emt 0:03:38]} Rb8 {[%emt 0:06:13]} 22. Nh2 {[%emt 0:11:10]} Bf7 {[%emt 0:08:53]} 23. Qd3 {[%emt 0:02:19]} Qe7 {[%emt 0:06:09]} 24. e4 {[%emt 0:03:48]} fxe4 {[%emt 0:02:12]} 25. Qxe4 {[%emt 0:00:16]} Nf6 {[%emt 0:00:33]} 26. Qd3 {[%emt 0:01:18]} Qd6 {[%emt 0:01:45]} 27. Rcd1 {[%emt 0:01:13]} Qc7 {[%emt 0:01:56]} 28. Qf3 {[%emt 0:02:31]} Qe7 {[%emt 0:02:02]} 29. g4 {[%emt 0:00:41]} Rd5 {[%emt 0:00:29]} 30. Ba2 {[%emt 0:01:35]} Rd6 {[%emt 0:00:19]} 31. Qg3 {[%emt 0:02:35]} Nh7 {[%emt 0:00:59]} 32. Nf3 {[%emt 0:00:33]} Rbd8 {[%emt 0:00:23]} 33. Re5 {[%emt 0:01:39]} Nf8 {[%emt 0:00:19]} 34. g5 {[%emt 0:00:29]} h5 {[%emt 0:00:22]} 35. Rde1 {[%emt 0:01:02]} Qd7 {[%emt 0:00:30]} 36. R5e2 {[%emt 0:01:25]} Ng6 {[%emt 0:00:21]} 37. Bb1 {[%emt 0:00:55]} Ne7 {[%emt 0:00:50]} 38. g6 {[%emt 0:00:18]} Be8 {[%emt 0:00:31]} 39. Qg5 {[%emt 0:00:36]} Nd5 {[%emt 0:00:53]} 40. Qxh5 {[%emt 0:00:20]} Nf6 {[%emt 0:01:16]} 41. Qg5 {[%emt 0:00:30]} Rd5 {[%emt 0:00:00]} 42. Re5 {[%emt 0:00:32]} Qc7 {[%emt 0:00:00]} 43. h5 {[%emt 0:01:30]} c5 {[%emt 0:00:24]} 44. Ba2 {[%emt 0:01:29]} c4 {[%emt 0:00:18]} 45. h6 {[%emt 0:00:28]} b5 {[%emt 0:00:15]} 46. Bb1 {[%emt 0:01:56]} a5 {[%emt 0:00:42]} 47. Qh4 {[%emt 0:00:56]} b4 {[%emt 0:00:19]} 48. axb4 {[%emt 0:00:10]} axb4 {[%emt 0:00:04]} 49. h7+ {[%emt 0:00:20]} Kh8 {[%emt 0:00:07]} 50. Rxe6 {[%emt 0:01:12]} c3 {[%emt 0:00:29]} 51. Qxf6 {[%emt 0:00:58]} gxf6 {[%emt 0:00:27]} 52. Rxe8+ {[%emt 0:00:03]} Rxe8 {[%emt 0:00:18]} 53. Rxe8+ {[%emt 0:00:03]} Kg7 {[%emt 0:00:08]} 54. h8=Q# {[%emt 0:00:08]} 1-0

[Event "FIDE World School-ch G-13 2025"]
[Site "Vrnjacka Banja"]
[Date "2025.03.28"]
[Round "9.3"]
[White "Akuratiya, A G Hansadie Aradhya"]
[Black "Amanzhol, Khanzada"]
[Result "0-1"]
[Annotator "NA RC"]
[ECO "B07"]
[WhiteElo "1629"]
[BlackElo "1908"]
[PlyCount "70"]
[EventDate "2025.03.19"]
[EventType "swiss"]
[EventCountry "SRB"]
[SourceTitle "playchess.com"]
[Source "ChessBase"]
[SourceQuality "1"]
[TimeControl "5400+30"]

1. e4 {[%emt 0:00:04]} d6 {[%emt 0:00:05]} 2. d4 {[%emt 0:00:11]} Nf6 {[%emt 0:00:06]} 3. Nc3 {[%emt 0:00:08]} e5 {[%emt 0:00:05]} 4. f4 {[%emt 0:00:48]} exd4 {[%emt 0:01:53]} 5. Qxd4 {[%emt 0:00:12]} Be7 {[%emt 0:01:08]} 6. Nf3 {[%emt 0:02:12]} O-O {[%emt 0:01:00]} 7. Be3 {[%emt 0:02:34]} c6 {[%emt 0:06:14]} 8. O-O-O {[%emt 0:01:37]} b5 {[%emt 0:01:07]} 9. Qd3 {[%emt 0:11:16]} b4 {[%emt 0:02:00]} 10. Na4 {[%emt 0:04:07]} Qa5 {[%emt 0:01:30]} 11. b3 {[%emt 0:04:09]} Ba6 {[%emt 0:01:16]} 12. c4 {[%emt 0:02:38]} d5 {[%emt 0:02:43]} 13. exd5 {[%emt 0:04:14]} cxd5 {[%emt 0:03:29]} 14. Qc2 {[%emt 0:03:49]} Rc8 {[%emt 0:05:36]} 15. Ne5 {[%emt 0:02:51]} Nc6 {[%emt 0:04:51]} 16. Kb1 {[%emt 0:04:07]} Nxe5 {[%emt 0:02:18]} 17. fxe5 {[%emt 0:00:18]} Ng4 {[%emt 0:00:34]} 18. Qe2 {[%emt 0:05:29]} Nxe3 $19 {[%emt 0:06:09]} ({Resist} 18... Nxe5 19. Bd4 Bf6 (19... Nc6 $2 20. Bb2 $17) 20. Bxe5 $17) 19. Qxe3 {[%emt 0:00:17]} dxc4 {[%emt 0:01:17]} 20. Rd7 {[%emt 0:04:13]} Rc7 {[%emt 0:01:22]} 21. e6 {[%emt 0:03:51]} Rxd7 {[%emt 0:00:53]} 22. exd7 {[%emt 0:00:18]} Qf5+ {[%emt 0:00:34]} 23. Ka1 {[%emt 0:01:49]} Qxd7 {[%emt 0:01:33]} 24. Bxc4 {[%emt 0:01:14]} Bxc4 {[%emt 0:01:10]} 25. bxc4 {[%emt 0:00:25]} Bf6+ {[%emt 0:03:15]} 26. Nb2 {[%emt 0:00:17]} Re8 {[%emt 0:00:23]} 27. Qf2 {[%emt 0:03:57]} a5 {[%emt 0:01:46]} 28. Kb1 {[%emt 0:02:21]} Bxb2 {[%emt 0:01:51]} 29. Kxb2 {[%emt 0:02:43]} Qd3 {[%emt 0:00:24]} 30. Ka1 {[%emt 0:09:00]} Re2 {[%emt 0:00:34]} 31. Qxe2 {[%emt 0:01:17]} Qxe2 {[%emt 0:00:07]} 32. Rc1 {[%emt 0:00:09]} Qd2 {[%emt 0:00:19]} 33. Kb1 {[%emt 0:00:09]} a4 {[%emt 0:00:42]} 34. c5 {[%emt 0:00:16]} b3 {[%emt 0:00:24]} 35. c6 {[%emt 0:00:31]} Qxa2# {[%emt 0:00:05]} 0-1

[Event "FIDE World School-ch G-13 2025"]
[Site "Vrnjacka Banja"]
[Date "2025.03.28"]
[Round "9.4"]
[White "Enkhzaya, Zagas-Erdene"]
[Black "Tereshchenko, Eliza"]
[Result "1/2-1/2"]
[Annotator "NA RC"]
[ECO "D36"]
[WhiteElo "1801"]
[BlackElo "1751"]
[PlyCount "179"]
[EventDate "2025.03.19"]
[EventType "swiss"]
[EventCountry "SRB"]
[SourceTitle "playchess.com"]
[Source "ChessBase"]
[SourceQuality "1"]
[TimeControl "5400+30"]

1. d4 {[%emt 0:00:03]} d5 {[%emt 0:00:07]} 2. c4 {[%emt 0:00:04]} e6 {[%emt 0:00:16]} 3. Nc3 {[%emt 0:00:13]} Nf6 {[%emt 0:00:19]} 4. cxd5 {[%emt 0:00:01]} exd5 {[%emt 0:00:09]} 5. Bg5 {[%emt 0:00:05]} Be7 {[%emt 0:00:06]} 6. e3 {[%emt 0:00:05]} c6 {[%emt 0:00:05]} 7. Bd3 {[%emt 0:00:06]} O-O {[%emt 0:00:09]} 8. Qc2 {[%emt 0:00:13]} h6 {[%emt 0:00:55]} 9. h4 {[%emt 0:05:51]} Re8 {[%emt 0:08:50]} 10. Bxf6 {[%emt 0:30:04]} Bxf6 {[%emt 0:00:18]} 11. O-O-O {[%emt 0:00:22]} a5 {[%emt 0:07:06]} 12. Nge2 {[%emt 0:09:28]} b5 {[%emt 0:02:54]} 13. Rdg1 {[%emt 0:00:22]} Ba6 {[%emt 0:20:05]} 14. Ng3 {[%emt 0:06:17]} b4 {[%emt 0:10:46]} 15. Na4 {[%emt 0:00:13]} Bxd3 {[%emt 0:02:19]} 16. Qxd3 {[%emt 0:00:01]} Nd7 {[%emt 0:10:36]} 17. Nf5 {[%emt 0:00:48]} c5 {[%emt 0:05:42]} 18. dxc5 {[%emt 0:01:05]} Nxc5 {[%emt 0:07:02]} 19. Nxc5 {[%emt 0:00:18]} Qc7 {[%emt 0:04:22]} 20. g4 {[%emt 0:01:04]} Qxc5+ {[%emt 0:00:16]} 21. Kb1 {[%emt 0:00:01]} Qc4 {[%emt 0:04:57]} 22. Qxc4 {[%emt 0:01:51]} dxc4 {[%emt 0:00:01]} 23. Nd6 {[%emt 0:00:01]} Red8 {[%emt 0:03:47]} 24. Nxc4 {[%emt 0:03:53]} Rac8 {[%emt 0:00:09]} 25. b3 {[%emt 0:00:31]} Rc5 {[%emt 0:01:08]} 26. Rg2 {[%emt 0:04:37]} Rxc4 {[%emt 0:04:22]} 27. bxc4 {[%emt 0:00:15]} Rd2 {[%emt 0:00:01]} 28. g5 {[%emt 0:03:00]} hxg5 {[%emt 0:03:07]} 29. hxg5 {[%emt 0:00:02]} Be5 {[%emt 0:00:13]} 30. Rgg1 {[%emt 0:01:35]} Rb2+ {[%emt 0:01:12]} 31. Kc1 {[%emt 0:00:11]} Rxa2 {[%emt 0:00:13]} 32. f4 {[%emt 0:00:49]} Bc3 {[%emt 0:00:26]} 33. Rd1 {[%emt 0:00:19]} Kf8 {[%emt 0:01:10]} 34. Rd8+ {[%emt 0:01:52]} Ke7 {[%emt 0:00:01]} 35. Rhh8 {[%emt 0:00:23]} f5 {[%emt 0:02:40]} 36. g6 {[%emt 0:01:19]} Kf6 {[%emt 0:00:52]} 37. Rd6+ {[%emt 0:05:37]} Ke7 {[%emt 0:00:01]} 38. Rb6 {[%emt 0:06:27]} Ra1+ {[%emt 0:01:15]} 39. Kc2 {[%emt 0:00:03]} Ra2+ {[%emt 0:00:05]} 40. Kb3 {[%emt 0:01:05]} Ra3+ {[%emt 0:00:39]} 41. Kc2 {[%emt 0:00:01]} Ra2+ {[%emt 0:00:01]} 42. Kd1 {[%emt 0:00:31]} Rd2+ {[%emt 0:00:21]} 43. Kc1 {[%emt 0:00:02]} a4 {[%emt 0:02:25]} 44. Ra8 {[%emt 0:00:24]} Rd7 {[%emt 0:00:31]} 45. Rxa4 {[%emt 0:00:45]} Bd2+ {[%emt 0:00:12]} 46. Kc2 {[%emt 0:00:45]} Bxe3 {[%emt 0:00:10]} 47. Rbxb4 {[%emt 0:00:46]} Bxf4 {[%emt 0:00:24]} 48. Rb5 {[%emt 0:02:15]} Kf6 {[%emt 0:00:33]} 49. c5 {[%emt 0:00:02]} Be5 {[%emt 0:00:47]} 50. Ra6+ {[%emt 0:00:14]} Kg5 {[%emt 0:00:06]} 51. c6 {[%emt 0:00:05]} Re7 {[%emt 0:00:45]} 52. Rb7 {[%emt 0:04:08]} Re8 {[%emt 0:00:49]} 53. Ra5 {[%emt 0:04:27]} Kxg6 {[%emt 0:00:43]} 54. Rbb5 {[%emt 0:03:17]} Bh2 {[%emt 0:00:12]} 55. Rxf5 {[%emt 0:00:13]} Rc8 {[%emt 0:00:43]} 56. Rfc5 {[%emt 0:01:08]} Kf6 {[%emt 0:00:33]} 57. Kd3 {[%emt 0:00:53]} g5 {[%emt 0:00:31]} 58. Rf5+ {[%emt 0:00:24]} Ke6 {[%emt 0:00:07]} 59. Rxg5 {[%emt 0:00:33]} Rxc6 {[%emt 0:00:42]} 60. Rg6+ {[%emt 0:00:03]} Kd7 {[%emt 0:00:03]} 61. Ra7+ {[%emt 0:00:56]} Rc7 {[%emt 0:00:26]} 62. Rxc7+ {[%emt 0:01:32]} Kxc7 {[%emt 0:00:12]} 63. Ke4 {[%emt 0:00:06]} Kd7 {[%emt 0:00:29]} 64. Rh6 {[%emt 0:00:15]} Bg3 {[%emt 0:00:24]} 65. Rh3 {[%emt 0:00:37]} Bf2 {[%emt 0:01:34]} 66. Kd5 {[%emt 0:00:11]} Kc7 {[%emt 0:00:22]} 67. Rh6 {[%emt 0:00:20]} Bg3 {[%emt 0:00:31]} 68. Rc6+ {[%emt 0:00:06]} Kb7 {[%emt 0:00:22]} 69. Kc5 {[%emt 0:00:01]} Bc7 {[%emt 0:00:44]} 70. Kb5 {[%emt 0:00:08]} Bd8 {[%emt 0:00:34]} 71. Rc4 {[%emt 0:00:19]} Bc7 {[%emt 0:00:28]} 72. Rg4 {[%emt 0:10:29]} Be5 {[%emt 0:00:22]} 73. Rg5 {[%emt 0:00:00]} Bh2 {[%emt 0:00:31]} 74. Rg7+ {[%emt 0:00:00]} Kc8 {[%emt 0:00:24]} 75. Kc6 {[%emt 0:00:00]} Kd8 {[%emt 0:00:14]} 76. Rh7 {[%emt 0:00:00]} Bg3 {[%emt 0:00:06]} 77. Kd5 {[%emt 0:00:00]} Bc7 {[%emt 0:00:41]} 78. Rf7 {[%emt 0:00:00]} Bg3 {[%emt 0:00:38]} 79. Ke6 {[%emt 0:00:00]} Bh2 {[%emt 0:00:30]} 80. Rd7+ {[%emt 0:00:00]} Kc8 {[%emt 0:00:14]} 81. Rh7 {[%emt 0:00:00]} Bc7 {[%emt 0:00:49]} 82. Kd5 {[%emt 0:00:00]} Bg3 {[%emt 0:00:40]} 83. Kc6 {[%emt 0:00:00]} Kd8 {[%emt 0:00:10]} 84. Rh3 {[%emt 0:00:00]} Bf4 {[%emt 0:00:27]} 85. Rf3 {[%emt 0:00:00]} Bh2 {[%emt 0:00:07]} 86. Re3 {[%emt 0:00:00]} Bf4 {[%emt 0:00:22]} 87. Re4 {[%emt 0:00:00]} Bg3 {[%emt 0:00:14]} 88. Kd5 {[%emt 0:00:00]} Kd7 {[%emt 0:00:23]} 89. Rg4 {[%emt 0:00:00]} Bc7 {[%emt 0:00:32]} 90. Rg5 {[%emt 0:09:00]} 1/2-1/2

[Event "FIDE World School-ch G-13 2025"]
[Site "Vrnjacka Banja"]
[Date "2025.03.28"]
[Round "9.5"]
[White "Abylaykyzy, Bibisara"]
[Black "Xu, Luna Yuexiu"]
[Result "1/2-1/2"]
[Annotator "NA RC"]
[ECO "C07"]
[WhiteElo "1651"]
[BlackElo "1901"]
[PlyCount "132"]
[EventDate "2025.03.19"]
[EventType "swiss"]
[EventCountry "SRB"]
[SourceTitle "playchess.com"]
[Source "ChessBase"]
[SourceQuality "1"]
[TimeControl "5400+30"]

1. e4 {[%emt 0:00:06]} e6 {[%emt 0:00:51]} 2. d4 {[%emt 0:00:31]} d5 {[%emt 0:00:16]} 3. Nd2 {[%emt 0:00:07]} c5 {[%emt 0:00:21]} 4. dxc5 {[%emt 0:01:34]} Bxc5 {[%emt 0:00:48]} 5. Bd3 {[%emt 0:00:06]} Nc6 {[%emt 0:02:17]} 6. Ngf3 {[%emt 0:00:52]} Nf6 {[%emt 0:00:36]} 7. Qe2 {[%emt 0:02:47]} O-O {[%emt 0:08:12]} 8. O-O {[%emt 0:01:01]} Qc7 {[%emt 0:02:11]} 9. e5 {[%emt 0:07:16]} Nd7 {[%emt 0:01:00]} 10. Re1 {[%emt 0:01:38]} a5 {[%emt 0:01:59]} 11. Bxh7+ {[%emt 0:05:14]} Kh8 {[%emt 0:12:57]} 12. Bd3 {[%emt 0:00:15]} g6 {[%emt 0:01:01]} 13. c3 $18 {[%emt 0:02:28]} Kg7 {[%emt 0:01:55]} 14. Nb3 {[%emt 0:02:22]} Be7 {[%emt 0:04:26]} 15. Bf4 {[%emt 0:04:28]} Rh8 {[%emt 0:04:13]} 16. Nfd4 {[%emt 0:11:47]} Nc5 {[%emt 0:03:13]} 17. Nxc5 {[%emt 0:05:07]} Bxc5 {[%emt 0:00:21]} 18. Nb5 {[%emt 0:00:09]} Qe7 {[%emt 0:02:46]} 19. Qf3 {[%emt 0:09:11]} Bd7 {[%emt 0:03:43]} 20. Nd6 {[%emt 0:06:16]} Bxd6 {[%emt 0:02:21]} 21. exd6 {[%emt 0:00:05]} Qf6 {[%emt 0:00:27]} 22. Bb5 {[%emt 0:06:40]} Kg8 {[%emt 0:07:37]} 23. Qe3 {[%emt 0:02:09]} e5 {[%emt 0:04:45]} 24. Bg3 {[%emt 0:02:52]} Qxd6 {[%emt 0:00:59]} 25. Bxc6 {[%emt 0:01:03]} Qxc6 {[%emt 0:00:11]} 26. Bxe5 {[%emt 0:00:16]} Re8 {[%emt 0:02:18]} 27. Qa7 {[%emt 0:05:45]} b6 {[%emt 0:04:00]} 28. Bd4 {[%emt 0:01:42]} Rh4 {[%emt 0:04:07]} 29. Rxe8+ {[%emt 0:04:00]} Bxe8 {[%emt 0:00:11]} 30. Re1 {[%emt 0:01:05]} Re4 {[%emt 0:02:54]} 31. Rxe4 {[%emt 0:00:07]} dxe4 {[%emt 0:00:11]} 32. Qxb6 {[%emt 0:00:41]} Qa4 {[%emt 0:01:49]} 33. h3 {[%emt 0:00:43]} Qxa2 {[%emt 0:00:36]} 34. Qf6 {[%emt 0:01:28]} Kf8 {[%emt 0:00:29]} 35. Qg7+ {[%emt 0:01:50]} Ke7 {[%emt 0:00:10]} 36. Bc5+ {[%emt 0:00:17]} Kd7 {[%emt 0:06:13]} 37. Qd4+ {[%emt 0:00:08]} Kc8 {[%emt 0:00:22]} 38. Qxe4 {[%emt 0:01:11]} Qa4 {[%emt 0:00:58]} 39. Qxa4 {[%emt 0:00:19]} Bxa4 {[%emt 0:00:11]} 40. Bb6 {[%emt 0:00:02]} Bb3 {[%emt 0:00:33]} 41. Bxa5 {[%emt 0:00:06]} Kd7 {[%emt 0:00:28]} 42. Kf1 {[%emt 0:00:17]} Ke6 {[%emt 0:00:25]} 43. Ke2 {[%emt 0:00:06]} Kd5 {[%emt 0:00:29]} 44. Ke3 {[%emt 0:00:22]} Kc4 {[%emt 0:01:06]} 45. Bb4 {[%emt 0:00:06]} Kb5 {[%emt 0:00:23]} 46. h4 {[%emt 0:00:20]} Bd1 {[%emt 0:02:59]} 47. Kf4 {[%emt 0:00:12]} Kc4 {[%emt 0:01:17]} 48. g4 {[%emt 0:00:22]} Kd5 {[%emt 0:00:19]} 49. Kg5 {[%emt 0:00:54]} Ke6 {[%emt 0:00:33]} 50. h5 {[%emt 0:02:17]} gxh5 {[%emt 0:00:34]} 51. gxh5 {[%emt 0:00:04]} Bc2 {[%emt 0:00:40]} 52. c4 {[%emt 0:00:05]} f6+ {[%emt 0:00:34]} 53. Kh6 {[%emt 0:00:47]} Kf7 {[%emt 0:00:12]} 54. Bd6 {[%emt 0:01:40]} Bb3 {[%emt 0:00:16]} 55. c5 {[%emt 0:00:08]} Ba4 {[%emt 0:00:17]} 56. f4 {[%emt 0:03:31]} Bb5 {[%emt 0:01:50]} 57. b4 {[%emt 0:00:48]} Bc6 {[%emt 0:00:34]} 58. f5 {[%emt 0:00:17]} Bb5 {[%emt 0:00:17]} 59. Bc7 {[%emt 0:01:16]} Bc6 {[%emt 0:00:12]} 60. Kh7 {[%emt 0:02:01]} Bb5 {[%emt 0:00:43]} 61. Bd8 {[%emt 0:02:08]} Bd7 {[%emt 0:01:23]} 62. Kh8 {[%emt 0:00:44]} Be8 {[%emt 0:00:49]} 63. h6 {[%emt 0:00:36]} Bd7 {[%emt 0:00:27]} 64. Bxf6 {[%emt 0:00:31]} Be8 {[%emt 0:00:08]} 65. Bd8 {[%emt 0:00:26]} Bd7 {[%emt 0:00:39]} 66. f6 {[%emt 0:00:09]} Be8 {[%emt 0:00:07]} 1/2-1/2

[Event "FIDE World School-ch G-13 2025"]
[Site "Vrnjacka Banja"]
[Date "2025.03.28"]
[Round "9.6"]
[White "Rajlic, Irina"]
[Black "Omirserik, Alima"]
[Result "0-1"]
[Annotator "NA RC"]
[ECO "B40"]
[WhiteElo "1568"]
[BlackElo "1814"]
[PlyCount "62"]
[EventDate "2025.03.19"]
[EventType "swiss"]
[EventCountry "SRB"]
[SourceTitle "playchess.com"]
[Source "ChessBase"]
[SourceQuality "1"]
[TimeControl "5400+30"]

1. e4 {[%emt 0:00:02]} c5 {[%emt 0:00:45]} 2. Nf3 {[%emt 0:00:16]} e6 {[%emt 0:00:05]} 3. d3 {[%emt 0:00:10]} a6 {[%emt 0:00:14]} 4. g3 {[%emt 0:00:35]} Nc6 {[%emt 0:01:09]} 5. Bg2 {[%emt 0:00:21]} g6 {[%emt 0:01:43]} 6. Nbd2 {[%emt 0:04:14]} Bg7 {[%emt 0:01:54]} 7. O-O {[%emt 0:05:15]} Nge7 {[%emt 0:00:14]} 8. Re1 {[%emt 0:02:21]} O-O {[%emt 0:00:25]} 9. Nf1 {[%emt 0:05:03]} b6 {[%emt 0:06:12]} 10. c3 {[%emt 0:11:41]} d5 {[%emt 0:07:25]} 11. exd5 {[%emt 0:04:32]} Nxd5 {[%emt 0:01:05]} 12. Ne3 {[%emt 0:03:35]} Nxe3 {[%emt 0:01:32]} 13. fxe3 {[%emt 0:08:35]} Bb7 {[%emt 0:02:34]} 14. d4 {[%emt 0:06:40]} cxd4 {[%emt 0:04:57]} 15. exd4 {[%emt 0:00:32]} Qd7 {[%emt 0:04:06]} 16. Be3 {[%emt 0:08:12]} b5 {[%emt 0:01:47]} 17. a3 {[%emt 0:01:38]} Rfd8 {[%emt 0:02:28]} 18. Qe2 {[%emt 0:08:32]} Rac8 {[%emt 0:05:25]} 19. Nd2 {[%emt 0:05:42]} e5 {[%emt 0:04:32]} 20. dxe5 {[%emt 0:04:01]} Nxe5 {[%emt 0:02:10]} 21. Nf3 {[%emt 0:08:40]} Nc4 {[%emt 0:06:28]} 22. Bc1 {[%emt 0:04:01]} Re8 {[%emt 0:03:22]} 23. Qf2 {[%emt 0:03:16]} Rxe1+ {[%emt 0:01:18]} 24. Qxe1 {[%emt 0:00:47]} Re8 {[%emt 0:00:07]} 25. Qf2 {[%emt 0:02:31]} Qd1+ {[%emt 0:03:13]} 26. Qf1 {[%emt 0:01:21]} Qc2 {[%emt 0:00:44]} 27. Bf4 {[%emt 0:00:51]} Qxb2 {[%emt 0:01:04]} 28. h4 {[%emt 0:00:33]} Bxc3 {[%emt 0:00:27]} 29. Rc1 {[%emt 0:00:25]} Qxa3 {[%emt 0:10:42]} 30. Qd3 {[%emt 0:00:36]} Bb2 {[%emt 0:01:18]} 31. Qxa3 {[%emt 0:00:17]} Bxa3 {[%emt 0:00:10]} 0-1